Cogmind - Beta 12 @@@ ROGUE MODE // 2023.06.20 @ 17:07:26 Player: Michael Result: Self-destructed Performance ------------- Evolutions (0) 0 Regions Visited (4) 800 Robots Destroyed (31) 155 Value Destroyed (498) 498 Prototype IDs (0) 0 Alien Tech Used (0) 0 Bonus (0) 0 TOTAL SCORE: 1453 Bonus ------- None Cogmind --------- Core Integrity 5/250 Matter 92/300 Energy 96/100 System Corruption 0% Temperature Cool (0) Movement Treading (240) Ox1 Location -9/Mines Parts ------- > --- POWER (1) -------- (None) > --- PROPULSION (2) --- Improved Treads > --- UTILITY (2) ------ High-capacity Storage Unit Targeting Computer > --- WEAPON (2) ------- Assault Rifle Assault Rifle > --- INVENTORY (20) --- Ion Engine Nuclear Core Reinforced Deuterium Engine Reinforced Deuterium Engine Improved Treads Improved Treads Improved Treads Armored Wheel Armored Wheel Armored Wheel Armored Wheel Medium Storage Unit Large Matter Pod (150) Structural Scanner High-powered Tractor Beam High-powered Tractor Beam Grenade Launcher Makeshift Spear Peak State ------------ > --- POWER ------------ Ion Engine > --- PROPULSION ------- Improved Treads Wheel > --- UTILITY ---------- High-capacity Storage Unit Targeting Computer > --- WEAPON ----------- Assault Rifle Assault Rifle > --- INVENTORY -------- Nuclear Core Reinforced Deuterium Engine Reinforced Deuterium Engine Improved Treads Improved Treads Improved Treads Armored Wheel Armored Wheel Armored Wheel Armored Wheel Medium Storage Unit Large Matter Pod Structural Scanner High-powered Tractor Beam High-powered Tractor Beam Assault Rifle Assault Rifle Light Assault Rifle Grenade Launcher Makeshift Spear [Rating: 12] Favorites ----------- Power Ion Engine Engine Ion Engine Propulsion Improved Treads Treads Improved Treads Leg Aluminum Leg Wheel Wheel Utility Targeting Computer Device Structural Scanner Storage High-capacity Storage Unit Processor Targeting Computer Weapon Light Assault Rifle Ballistic Gun Light Assault Rifle Launcher Grenade Launcher Build | -11 -10 -10 -10 -9 ------- Run | Jun Mat Min Exi Min Slots Evolved . | . . . . . Power . | . . . . . Propulsion . | . . . . . Utility . | . . . . . Weapon . | . . . . . Parts Attached 41 | 6 13 13 . 9 Power 4 | 1 1 1 . 1 Engine 4 | 1 1 1 . 1 Core . | . . . . . Reactor . | . . . . . Propulsion 10 | 2 6 2 . . Treads 3 | . 3 . . . Leg 2 | 2 . . . . Wheel 5 | . 3 2 . . Hover . | . . . . . Flight . | . . . . . Utility 4 | 1 3 . . . Device 1 | . 1 . . . Storage 2 | 1 1 . . . Processor 1 | . 1 . . . Hackware . | . . . . . Protection . | . . . . . Artifact . | . . . . . Weapon 23 | 2 3 10 . 8 Energy Gun . | . . . . . Energy Cannon . | . . . . . Ballistic Gun 16 | 2 3 6 . 5 Ballistic Cannon . | . . . . . Launcher 7 | . . 4 . 3 Special Weapon . | . . . . . Impact Weapon . | . . . . . Slashing Weapon . | . . . . . Piercing Weapon . | . . . . . Special Melee Weapon . | . . . . . Unidentified Prototypes . | . . . . . Parts Lost 6 | . . 2 . 4 Power 2 | . . 1 . 1 Propulsion 2 | . . 1 . 1 Utility . | . . . . . Weapon 2 | . . . . 2 Highest Loss Streak 3 | . . 1 . 3 To Critical Strikes . | . . . . . Average Slot Usage (%) 96 | . 92 100 100 98 Engine 13 | . 14 14 14 12 Treads 13 | . 11 14 14 14 Leg 1 | . 3 . . . Wheel 13 | . 12 14 14 13 Storage 14 | . 14 14 14 14 Processor 11 | . 6 14 14 14 Ballistic Gun 27 | . 28 27 28 26 Naked Turns . | . . . . . Heaviest Build 50 | 12 48 49 49 50 Greatest Support 24 | 20 24 12 10 10 Greatest Overweight (x) 4 | . 4 4 4 4 Average Overweight (x) 3 | . 2 3 4 4 Largest Inventory Capacity 20 | 8 20 20 20 20 Average Capacity 17 | 6 13 20 20 20 Most Carried 20 | 3 18 20 20 20 Average Carried 14 | 1 10 17 19 19 Final Capacity 20 | 8 20 20 20 20 Final Carried 20 | 3 17 20 20 18 Class Distribution -------------------- 100% | Mutant Dominant Class ---------------- Mutant | -10/Materials Mutant | -10/Mines Mutant | -10/Exiles Mutant | -9/Mines Resources | -11 -10 -10 -10 -9 ----------- Run | Jun Mat Min Exi Min Matter Collected 829 | 260 314 220 . 35 Remotely . | . . . . . Salvage Created 531 | . 256 253 . 22 Parts 49 | . 17 27 . 5 Haulers Intercepted . | . . . . . Recyclers Shooed 7 | . 5 2 . . Parts Field Recycled . | . . . . . Retrieved Matter . | . . . . . Parts Self-Destructed . | . . . . . Prevented . | . . . . . Kills | -11 -10 -10 -10 -9 ------- Run | Jun Mat Min Exi Min Combat Hostiles Destroyed 27 | . 9 13 . 5 Guns 14 | . 9 4 . 1 AOE 13 | . . 9 . 4 Classes Destroyed 7 | . 4 2 . 1 Worker 1 | . 1 . . . Builder 1 | . . 1 . . Recycler 1 | . . 1 . . Watcher 1 | . 1 . . . Swarmer 20 | . 5 11 . 4 Grunt 6 | . 4 2 . . Demolisher 1 | . . . . 1 Best Kill Streak 6 | . 6 4 . 4 Combat Bots Only 6 | . 6 3 . 4 Max Kills in Single Turn 4 | . 1 3 . 4 Gunslinging . | . . . . . Exploded 4 | . . 3 . 4 Melee . | . . . . . Uniques/NPCs Destroyed . | . . . . . Combat | -11 -10 -10 -10 -9 -------- Run | Jun Mat Min Exi Min Damage Taken 1142 | . 268 333 . 541 Core 245 | . 42 59 . 144 Absorbed by Shields . | . . . . . Core Remaining (%) 100 | 100 . . . . Volleys Fired 73 | . 41 21 . 11 Largest 2 | . 2 2 . 2 Hottest 50 | . 40 50 . 50 Shots Fired 139 | . 82 40 . 17 Gun 127 | . 82 34 . 11 Cannon . | . . . . . Launcher 12 | . . 6 . 6 Special . | . . . . . Kinetic 127 | . 82 34 . 11 Thermal . | . . . . . Explosive 12 | . . 6 . 6 Electromagnetic . | . . . . . Robot Hit Streak 13 | . 13 8 . 12 Robot Miss Streak 3 | . 3 3 . 1 Penetration Max . | . . . . . Secondary Targets . | . . . . . Shots Hit Robots 85 | . 54 24 . 7 Core Hits 48 | . 22 19 . 7 Critical Kills 1 | . 1 . . . Critical Parts Destroyed 1 | . 1 . . . Critical Strikes 2 | . 2 . . . Destroy 2 | . 2 . . . Melee Attacks . | . . . . . Impact . | . . . . . Slashing . | . . . . . Piercing . | . . . . . Sneak Attacks . | . . . . . Combat Hostiles . | . . . . . Follow-up Attacks . | . . . . . Damage Inflicted 1380 | . 451 675 . 254 Guns 800 | . 451 247 . 102 Cannons . | . . . . . Explosions 580 | . . 428 . 152 Melee . | . . . . . Ramming . | . . . . . Kinetic 800 | . 451 247 . 102 Thermal . | . . . . . Explosive 580 | . . 428 . 152 Electromagnetic . | . . . . . Impact . | . . . . . Slashing . | . . . . . Piercing . | . . . . . Highest Corruption . | . . . . . Average Corruption . | . . . . . Corruption Purged . | . . . . . Corruption Blocked . | . . . . . Overload Shots . | . . . . . Overflow Damage . | . . . . . Projectiles . | . . . . . Explosions . | . . . . . Melee . | . . . . . Knockbacks . | . . . . . Impact . | . . . . . Kinetic . | . . . . . Secondary . | . . . . . Self-Inflicted Damage 69 | . . 46 . 23 Shots 4 | . . 3 . 1 Rammed . | . . . . . Targets Rammed . | . . . . . Kicked . | . . . . . Crushed . | . . . . . Highest Temperature 16 | . 12 16 . . Average Temperature 7 | . 6 8 . . Received Heat Transfer 108 | . 84 24 . . Siege Activations . | . . . . . Robots Corrupted . | . . . . . Combat Hostiles . | . . . . . Parts Fried . | . . . . . Impact Corruptions . | . . . . . Robots Melted . | . . . . . Combat Hostiles . | . . . . . Parts Melted . | . . . . . Heat Transferred . | . . . . . Parts Sabotaged . | . . . . . Parts Stolen . | . . . . . Parts Stripped . | . . . . . Power Chain Reactions . | . . . . . Missiles Intercepted . | . . . . . Alert | -11 -10 -10 -10 -9 ------- Run | Jun Mat Min Exi Min Peak Influence 277 | . 277 227 . 126 Initial 35 | . . 35 . . Average 93 | . 113 78 . 102 Maximum Alert Level 1 | . 1 1 . . Low Security (%) 87 | 100 72 96 . 100 Level 1 12 | . 27 3 . . Level 2 . | . . . . . Level 3 . | . . . . . Level 4 . | . . . . . Level 5 . | . . . . . High Security . | . . . . . Max Security . | . . . . . Squads Dispatched 3 | . 3 . . . Investigation . | . . . . . Extermination . | . . . . . Reinforcement 3 | . 3 . . . Assault . | . . . . . Garrison . | . . . . . Intercept . | . . . . . Searches Triggered . | . . . . . Construction Impeded . | . . . . . Haulers Reinforced . | . . . . . Active Scanning Responses . | . . . . . Cargo Convoy Interrupts . | . . . . . Stealth | -11 -10 -10 -10 -9 --------- Run | Jun Mat Min Exi Min Distress Signals 1 | . 1 . . . Communications Jammed . | . . . . . Distress Signals . | . . . . . Times Spotted 39 | . 19 14 . 6 Peak Tracking Total 5 | . 5 3 . 4 Tactical Retreats . | . . . . . Traps | -11 -10 -10 -10 -9 ------- Run | Jun Mat Min Exi Min Traps Triggered 1 | . 1 . . . Indirectly . | . . . . . Trap Hack Attempts . | . . . . . Triggered . | . . . . . Disarmed . | . . . . . Reprogrammed . | . . . . . Reused . | . . . . . Traps Extracted . | . . . . . Installed . | . . . . . Triggered . | . . . . . Machines | -11 -10 -10 -10 -9 ---------- Run | Jun Mat Min Exi Min Machines Disabled . | . . . . . Max in Single Turn . | . . . . . Machines Repaired . | . . . . . Machines Sabotaged . | . . . . . Overloaded Fab Kills . | . . . . . Hacking | -11 -10 -10 -10 -9 --------- Run | Jun Mat Min Exi Min Machines Accessed 5 | . 4 . 1 . Terminals 3 | . 3 . . . Fabricators . | . . . . . Repair Stations . | . . . . . Recycling Units 1 | . 1 . . . Scanalyzers . | . . . . . Garrison Access . | . . . . . Total Hacks 9 | . 8 . 1 . Successful 5 | . 4 . 1 . Failed 4 | . 4 . . . Catastrophic 3 | . 3 . . . Database Lockouts . | . . . . . Manual 3 | . 3 . . . Terminals 7 | . 7 . . . Fabricators . | . . . . . Repair Stations . | . . . . . Recycling Units 1 | . 1 . . . Scanalyzers . | . . . . . Garrison Access . | . . . . . Terminal Hacks 4 | . 3 . 1 . Record 1 | . . . 1 . Terminal Index 1 | . 1 . . . Hauler Manifests 1 | . 1 . . . Registered Components 1 | . 1 . . . Fabricator Hacks . | . . . . . Repair Station Hacks . | . . . . . Recycling Unit Hacks 1 | . 1 . . . Retrieve Components 1 | . 1 . . . Scanalyzer . | . . . . . Garrison Access Hacks . | . . . . . Unauthorized Hacks . | . . . . . Terminals . | . . . . . Fabricators . | . . . . . Repair Stations . | . . . . . Recycling Units . | . . . . . Scanalyzers . | . . . . . Garrison Access . | . . . . . Data Cores Recovered . | . . . . . Used . | . . . . . Hacking Detections 3 | . 3 . . . Full Trace Events . | . . . . . Feedback Events . | . . . . . Feedback Blocked . | . . . . . Robot Schematics Acquired . | . . . . . Robots Built . | . . . . . Authchips . | . . . . . Time . | . . . . . Total Robot Build Rating . | . . . . . Part Schematics Acquired . | . . . . . Parts Built . | . . . . . Authchips . | . . . . . Time . | . . . . . Total Part Build Rating . | . . . . . Parts Repaired . | . . . . . Time . | . . . . . Parts Recycled . | . . . . . Recycled Matter . | . . . . . Retrieved Matter . | . . . . . Retrieved Components 9 | . 9 . . . Parts Scanalyzed . | . . . . . Part Schematics Acquired . | . . . . . Parts Damaged . | . . . . . Bothacking | -11 -10 -10 -10 -9 ------------ Run | Jun Mat Min Exi Min Used RIF Installer . | . . . . . Robots Hacked . | . . . . . Non-combat . | . . . . . Combat . | . . . . . Robot Hacks Applied . | . . . . . Relay Couplers Released . | . . . . . Fabnet Peak Effective % . | . . . . . Robots Rewired . | . . . . . Allies Hacked . | . . . . . Hacks Repelled . | . . . . . Allies | -11 -10 -10 -10 -9 -------- Run | Jun Mat Min Exi Min Total Allies 1 | . . 1 . . Largest Group 1 | . . 1 . . Highest-Rated Group 31 | . . 31 . . Highest-Rated Ally 31 | . . 31 . . Total Orders . | . . . . . Ally Attacks . | . . . . . Total Damage . | . . . . . Kills . | . . . . . Allies Corrupted . | . . . . . Allies Melted . | . . . . . Intel | -11 -10 -10 -10 -9 ------- Run | Jun Mat Min Exi Min Robot Analysis Total . | . . . . . Derelict Logs Recovered 2 | . . 2 . . Drone Launches . | . . . . . Drone Recoveries . | . . . . . Exploration | -11 -10 -10 -10 -9 ------------- Run | Jun Mat Min Exi Min Turns Passed 1906 | 56 714 729 179 228 Spaces Moved 1213 | 41 466 458 125 123 Core 6 | 6 . . . . Treads . | . . . . . Legs 106 | 35 71 . . . Wheels 1101 | . 395 458 125 123 Hover . | . . . . . Flight . | . . . . . Fastest Speed 50 | 50 90 135 140 140 Average Speed 130 | 109 119 139 140 140 Slowest Speed 150 | 120 140 150 140 140 Overloaded Moves . | . . . . . Propulsion Burnouts . | . . . . . Robots Hopped . | . . . . . Cave-ins Triggered . | . . . . . Exploration Rate (%) 51 | 3 80 91 49 33 Regions Visited 4 Branch Regions 3 Pre-discovered Areas 2 | . . 1 1 . Known Exits Taken . | . . . . . Unknown Exits Taken 4 | 1 1 1 1 . Scrap Searched 4 | . . 3 . 1 Spaces Dug 5 | . . . . 5 Terrain Destroyed 72 | . . 33 . 39 Melee . | . . . . . Projectile . | . . . . . AOE 72 | . . 33 . 39 Terrain Rammed . | . . . . . Walls Destroyed . | . . . . . Machines Disabled . | . . . . . Actions | -11 -10 -10 -10 -9 --------- Run | Jun Mat Min Exi Min Total 1405 | 49 557 510 130 159 Wait 34 | . 9 12 . 13 Move 1209 | 40 465 457 124 123 Hop . | . . . . . Pick Up 27 | 3 16 4 3 1 Fast Attach 13 | 6 6 1 . . Attach 6 | . 1 2 . 3 Detach 6 | . 4 1 . 1 Swap 22 | . 6 10 . 6 Drop 15 | . 9 2 3 1 Fire 73 | . 41 21 . 11 Melee . | . . . . . Ram . | . . . . . Kick . | . . . . . Crush . | . . . . . Escape Stasis . | . . . . . Rewire . | . . . . . Trap . | . . . . . Miscellaneous . | . . . . . Route ------- -11/Junkyard -10/Materials (discovered 4 exits: [*Mat x2] / [*Min x2]) -10/Mines (discovered 2 exits: [*Mat] / *Exi) -10/Exiles -9/Mines History --------- Turn | Location | Event 11 | -11/Junkyard | Discovered new exit (range 15) 57 | -11/Junkyard | Entered Materials 310 | -10/Materials | Build established: Mutant 326 | -10/Materials | Discovered new exit (range 9) 420 | -10/Materials | Discovered new exit (range 16) 555 | -10/Materials | Discovered new exit (range 16) 652 | -10/Materials | Discovered new exit (range 11) 771 | -10/Materials | Entered Mines 774 | -10/Mines | Received a Mining Laser from a helpful Derelict 868 | -10/Mines | Learned location of Zion (-6) 1050 | -10/Mines | Discovered new exit (range 6) 1369 | -10/Mines | A weapon hastily lodged in a ceiling crevice suddenly fell to the ground 1486 | -10/Mines | Learned 8 Materials zone layouts 1494 | -10/Mines | Deemed a non-threat by the Exiles lab entrance 1494 | -10/Mines | Discovered new exit (range 5) 1500 | -10/Mines | Entered Exiles 1540 | -10/Exiles | Met 8R-AWN 1564 | -10/Exiles | Met EX-HEX 1617 | -10/Exiles | Met EX-DEC 1667 | -10/Exiles | Discovered new exit (range 10) 1679 | -10/Exiles | Entered Mines 1690 | -9/Mines | Assembled infested the area 1822 | -9/Mines | Found a hidden stash of uninstalled traps 1895 | -9/Mines | Core integrity fell below 50% 1906 | -9/Mines | Core integrity fell below 20% 1907 | -9/Mines | Self-destructed Last Messages --------------- 01822_ A stash of uninstalled traps is collected here! 01823_ K-01 Serf collects debris. 01875_ The unstable cave ceiling collapses. 01889_ Dropped Lgt. Assault Rifle. 01892_ U-05 Engineer builds a Wall. 01896_ K-01 Serf collects debris. 01896_ Assault Rifle destroyed. 01898_ Wheel destroyed. 01900_ D-53 Grenadier destroyed. 01900_ Assault Rifle destroyed. 01901_ The unstable cave ceiling collapses. 01901_ U-05 Engineer lays Concrete. 01901_ K-01 Serf collects debris. 01902_ R-06 Scavenger collects Launcher Guidance Computer. 01902_ U-05 Engineer lays Concrete. 01905_ The unstable cave ceiling collapses. 01905_ U-05 Engineer lays Concrete. 01906_ The unstable cave ceiling collapses. 01906_ U-05 Engineer lays Concrete. 01907_ The unstable cave ceiling collapses. Map ----- +----------------------------------------------------+ | ?????????????????????????????????????????????????? | | ?????????????????????????????????????????????????? | | ?????????????????????????????????????????????????? | | ?????????????????????????????????????????????????? | | ?????????????????????????????????????????????????? | | ?????????????????????????????????????????????????# | | ?????????????????????????????????????????????????# | | ?????????????????????????????????????????????????# | | ????????????????????????????????????????????###??# | | ???????????????????????????????????????????? #??# | | ????????????????????????????????????????????# #??# | | ????????????????????????????????????????????# #??# | | ???????????????????????????????? ???????????# #### | | ???????????????????????????????# ? # ??????# | | ??????????????????????????????? ?????##### | | ??????????????????????????????? ?????????## | | ?????????????????????????????? # <# #??????????# | | ?????????????????????????????? # #??????????# | | ?????????????????????????????## u ##???#?????# | | ????????????????????????????## ##??## ????? | | ?????????????????############ ## # #### | | ???????????###?### # # | | ??????????## ## # r | | ?????????## # d #??###### | | ????????## % #???????# # | | ????????# @ ## #??####?# # | | ????????# ## # ### #### ### # | | ?????????# # #### ## ## # | | ?????????## ### | | ??????????## # | | ???????????## ###### & ###### | | ????????????## ##????# ####& & ##????? | | ?????????????## ##?????# ##??# && ##?????? | | ??????????????# #??????#####???## ##??????# | | ??????????????# #???????????????######???????# | | ??????????????## #????????????????????????????# | | ???????????????# #????????????????????????????# | | ??????????????# #????????????????????????????? | | ??????????????# #????????????????????????????? | | ??????????????## ##????????????????????????????? | | ???????????????####??????????????????????????????? | | ?????????????????????????????????????????????????? | | ?????????????????????????????????????????????????? | | | | | | | | | | | | | | | +----------------------------------------------------+ Best States ------------- Heat Dissipation 25 Energy Generation 10 Energy Capacity 250 Matter Stores 300 Matter Capacity 300 Sight Range 16 Terrain Scan Density 10 Evasion (%) 55 Targeting Accuracy 5 Recoil Reduction 1 Item Schematics ----------------- None Robot Schematics ------------------ None Fabricated ------------ Nothing Alien Tech Used ----------------- None Achievements -------------- None Challenges ------------ None Game ------ Seed PlatingMakeshiftBox Manual? 0 Play Time 00:19:08 Cumulative 775.1 hours Start 2023.06.20 @ 16:49:58 End 2023.06.20 @ 17:07:26 Sessions 1 Manual Loads 0 Difficulty Rogue Special Mode None Game No. 233 Rogue 197 Adventurer 36 Explorer 0 Win Type - Total 16 Types 16/0/0/0/0/0/0/0/0 Lore% 57 Gallery% 63 Achievement% 50 Wizard Run 0 Options --------- ASCII 0 Keyboard 1 Movement Vi Keybinds 0 Fullscreen 1 Font 18/Terminus Map View 76x50 Tactical HUD 1 Map Filters NONE Filters NONE Steam 0 RUN: 59ec9f58-04d4-443d-8891-fb622a273faf